bitfinex-derivatives/quotes_SOLF0:USTF0_20260110
["timestamp","ask_amount","ask_price","bid_price","bid_amount"]
[1768081265811,5.38559064,135.78,135.72,6.6394]
[1768081266017,6.6365,135.79,135.72,6.6394]
[1768081266314,5.38559064,135.78,135.72,6.6394]
[1768081266514,6.6365,135.79,135.72,6.6394]
[1768081266719,5.38485668,135.78,135.72,6.6394]
[1768081266922,6.96543015,135.8,135.73,6.6392]
[1768081267122,5.38485668,135.79,135.73,6.6392]
[1768081267316,6.96543015,135.8,135.73,6.6392]
[1768081267521,5.38419116,135.79,135.73,6.6392]
[1768081267718,6.96543015,135.8,135.73,6.6392]
[1768081267919,5.38419116,135.79,135.73,6.6392]
[1768081268221,1.87526148,135.82,135.71,103.293]
[1768081268422,5.38287808,135.81,135.71,103.293]
[1768081268619,5.38287808,135.8,135.71,103.293]
[1768081268922,1.87526148,135.82,135.71,104.83913133]
[1768081269123,5.35818709,135.81,135.71,104.83913133]
[1768081269421,1.87526148,135.82,135.71,104.83913133]
[1768081269422,5.35818709,135.8,135.71,104.83913133]
[1768081269609,6.6355,135.81,135.74,6.6388]
[1768081269814,5.3569282,135.8,135.74,6.6388]
[1768081270016,6.6355,135.81,135.74,6.6388]
[1768081270212,5.35705922,135.8,135.74,6.6388]
[1768081270413,6.6355,135.81,135.74,6.6388]
[1768081270614,0.32913015,135.82,135.75,6.6383]
[1768081275216,0.32913015,135.82,135.76,6.6378]
[1768081281134,0.32913015,135.84,135.74,103.269]
[1768081281632,0.32913015,135.84,135.75,103.2641]
[1768081282536,0.32913015,135.84,135.78,6.6369]
[1768081284940,1.87526148,135.86,135.8,6.6358]
[1768081286434,1.87526148,135.86,135.76,103.2571]
[1768081286435,1.87526148,135.88,135.82,0.05435193]
[1768081287240,0.32913015,135.87,135.82,0.05435193]
[1768081291250,6.96193015,135.87,135.82,0.05435193]
[1768081291450,0.32913015,135.87,135.82,0.05435193]
[1768081292054,6.6331,135.86,135.82,0.05435193]
[1768081293554,6.96193015,135.87,135.82,0.05435193]
[1768081307859,190.2127,135.9,135.82,0.05435193]
[1768081307860,0.30313553,135.85,135.82,0.05435193]
[1768081321076,0.35055052,135.85,135.82,0.05435193]
[1768081323480,0.35055052,135.85,135.76,87.06]
[1768081324075,0.30313553,135.85,135.76,87.06]
[1768081324978,0.0499218,135.82,135.76,87.06]
[1768081326582,0.0499218,135.82,135.78,6.6368]
[1768081326883,0.0499218,135.82,135.76,87.06]
[1768081328582,0.0499218,135.82,135.79,6.6363]
[1768081330578,0.30855709,135.84,135.8,6.6359]
[1768081350510,0.30855709,135.86,135.8,6.6359]
[1768081350710,5.33404242,135.85,135.8,6.6359]
[1768081351010,0.30855709,135.86,135.8,6.6359]
[1768081351310,5.3336915,135.85,135.8,6.6359]
[1768081351511,0.30855709,135.86,135.8,6.6359]
[1768081351808,5.33427361,135.85,135.8,6.6359]
[1768081351996,0.30855709,135.86,135.8,6.6359]
[1768081352203,5.33427361,135.85,135.8,6.6359]
[1768081352404,0.30855709,135.86,135.8,6.6359]
[1768081352607,5.33476827,135.85,135.8,6.6359]
[1768081352809,0.30855709,135.86,135.8,6.6359]
[1768081353012,5.33476827,135.85,135.8,6.6359]
[1768081353209,6.94165709,135.86,135.8,6.6359]
[1768081353411,5.33479934,135.85,135.8,6.6359]
[1768081353610,6.94165709,135.86,135.8,6.6359]
[1768081353910,5.33479934,135.85,135.8,6.6359]
[1768081354208,6.94165709,135.86,135.8,6.6359]
[1768081354407,5.33483516,135.85,135.8,6.6359]
[1768081354608,5.65356307,135.84,135.78,6.6368]
[1768081354810,0.31865446,135.84,135.78,6.6368]
[1768081355714,6.95265446,135.84,135.78,6.6368]
[1768081382732,0.31865446,135.84,135.78,6.6368]
[1768081383333,6.94312408,135.86,135.76,191.83813594]
[1768081383534,5.35512937,135.85,135.76,191.83813594]
[1768081383735,6.94312408,135.86,135.76,191.83813594]
[1768081383934,5.35515133,135.85,135.76,191.83813594]
[1768081384132,6.94312408,135.86,135.79,6.6364]
[1768081384336,5.35515539,135.85,135.79,6.6364]
[1768081384536,0.30962408,135.85,135.76,191.83813594]
[1768081385738,6.94322408,135.85,135.79,6.636]
[1768081385931,0.30962408,135.84,135.79,6.636]
[1768081396845,0.30962408,135.88,135.79,103.2338]
[1768081397141,0.30962408,135.88,135.8,1.54413594]
[1768081398642,0.30962408,135.88,135.83,6.6345]
[1768081409959,6.94172408,135.88,135.81,6.635]
[1768081413464,6.94172408,135.88,135.79,104.77793594]
[1768081413660,6.94172408,135.88,135.82,6.635]
[1768081416867,0.30962408,135.88,135.82,6.635]
[1768081438188,0.30962408,135.88,135.83,6.6344]
[1768081455395,6.94202408,135.88,135.78,104.5172423]
[1768081456698,6.94202408,135.88,135.82,6.6349]
[1768081457000,0.31362369,135.87,135.78,104.5172423]
[1768081457388,0.31362369,135.86,135.78,1.2809423]
[1768081457589,0.31362369,135.86,135.76,103.2562]
[1768081457984,0.31362369,135.86,135.76,1.2813432]
[1768081459698,6.94722369,135.85,135.78,6.6366]
[1768081473208,6.634,135.84,135.78,6.6366]
[1768081487238,6.93646933,135.84,135.78,6.6366]
[1768081540273,0.32257501,135.86,135.76,106.07615878]
[1768081541569,6.95567501,135.86,135.79,6.6364]
[1768081563489,0.31474416,135.85,135.79,6.6364]
[1768081572996,0.31474416,135.84,135.79,6.6364]
[1768081575101,0.31474416,135.84,135.78,6.6369]
[1768081593715,0.30502767,135.83,135.76,6.6375]
[1768081596116,0.30502767,135.83,135.77,6.6372]
[1768081599222,0.30502767,135.82,135.74,1.28143757]
[1768081599521,0.30502767,135.82,135.72,190.3231]
[1768081599720,0.30502767,135.82,135.72,191.60472634]
[1768081600620,6.94002767,135.82,135.75,6.6384]
[1768081607026,6.94052767,135.81,135.75,6.6384]
[1768081607326,0.30502767,135.8,135.75,6.6384]
[1768081607826,6.94102767,135.8,135.73,6.639]
[1768081610327,0.30502767,135.79,135.74,6.6389]
[1768081610826,0.30502767,135.79,135.7,191.64009156]
[1768081611633,0.30502767,135.79,135.73,6.6394]
[1768081619533,0.31611525,135.78,135.7,88.34179156]
[1768081619730,0.04654027,135.77,135.7,88.34179156]
[1768081619932,0.04654027,135.77,135.75,0.04985392]
[1768081620328,0.04654027,135.77,135.7,88.34179156]
[1768081620530,0.04654027,135.77,135.72,6.6398]
[1768081622642,0.36265552,135.77,135.68,193.20136215]
[1768081623039,0.31611525,135.77,135.68,193.20136215]
[1768081623536,0.053549,135.74,135.71,6.6403]
[1768081626042,0.31611525,135.77,135.71,6.6403]
[1768081630858,6.95361525,135.77,135.71,6.6403]
[1768081634965,0.31611525,135.77,135.71,6.6403]
[1768081648877,0.31611525,135.77,135.68,106.14136215]
[1768081650589,0.31611525,135.77,135.71,6.64]
[1768081652483,0.32845186,135.79,135.69,103.3098]
[1768081653387,0.32845186,135.79,135.72,6.6394]
[1768081655290,6.96495186,135.79,135.72,6.6394]
[1768081660796,0.30683563,135.78,135.72,6.6394]
[1768081662389,0.30683563,135.82,135.71,103.2936]
[1768081662591,0.30683563,135.82,135.72,1.5454581]
[1768081663691,0.30683563,135.81,135.75,6.6384]
[1768081667586,6.6355,135.82,135.75,6.6384]
[1768081668698,6.94133563,135.83,135.76,6.6377]
[1768081669090,0.30683563,135.84,135.74,104.8164581]
[1768081670600,6.94083563,135.84,135.77,6.6374]
[1768081698931,6.6345,135.83,135.77,6.6374]
[1768081699733,6.6345,135.83,135.76,6.6379]
[1768081704135,6.95298415,135.83,135.76,6.6379]
[1768081713738,100.3451,135.88,135.76,112.41927863]
[1768081713739,0.31748524,135.88,135.76,112.41927863]
[1768081715152,0.31748524,135.88,135.76,103.2543]
[1768081715550,6.633,135.86,135.76,103.2543]
[1768081715738,0.31748524,135.88,135.77,103.2483]
[1768081716555,6.94988524,135.88,135.81,6.6354]
[1768081717548,6.94988524,135.88,135.82,6.6349]
[1768081718245,0.31748524,135.88,135.83,6.6344]
[1768081718547,6.94878524,135.9,135.83,6.6344]
[1768081721252,0.31748524,135.9,135.83,6.6344]
[1768081723648,0.31748524,135.88,135.81,6.6351]
[1768081723852,0.31748524,135.88,135.79,103.2299]
[1768081724555,0.31748524,135.88,135.82,6.6349]
[1768081731554,0.31748524,135.88,135.83,6.6345]
[1768081732155,2.41305449,135.91,135.83,6.6345]
[1768081732360,0.31748524,135.9,135.83,6.6345]
[1768081733546,6.94858524,135.9,135.83,6.6345]
[1768081740464,0.33021578,135.89,135.83,6.6345]
[1768081741066,0.33021578,135.88,135.79,104.77286089]
[1768081742564,0.33021578,135.88,135.82,6.635]
[1768081754171,0.33021578,135.88,135.83,6.6345]
[1768081783710,0.32252574,135.87,135.81,6.6354]
[1768081784011,1.86548663,135.87,135.81,6.6354]
[1768081784613,8.49808663,135.87,135.81,6.6354]
[1768081787506,6.6331,135.86,135.79,6.6362]
[1768081787709,6.95562574,135.86,135.79,6.6362]
[1768081792218,6.95562574,135.86,135.8,6.6358]
[1768081796514,0.32428153,135.85,135.8,6.6358]
[1768081826536,0.32428153,135.85,135.81,6.6354]
[1768081839343,6.6321,135.88,135.81,6.6354]
[1768081839545,0.31279151,135.87,135.81,6.6354]
[1768081877079,6.94529151,135.87,135.81,6.6354]
[1768081889594,6.6325,135.87,135.81,6.6354]
[1768081899897,6.93450299,135.87,135.81,6.6354]
[1768081900500,103.0679,136.01,135.82,6.6348]
[1768081900501,6.6319,135.89,135.82,6.6348]
[1768081900796,6.6319,135.89,135.83,0.05481467]
[1768081901594,6.6319,135.89,135.83,6.68921467]
[1768081903301,6.93310299,135.9,135.83,6.68921467]
[1768081909202,6.93310299,135.9,135.84,6.634]
[1768081914112,0.30200299,135.9,135.84,6.634]
[1768081928938,6.93310299,135.9,135.84,6.634]
[1768081936142,6.93310299,135.9,135.83,6.68921467]
[1768081941045,6.6316,135.89,135.83,6.68921467]
[1768081941750,6.6321,135.88,135.83,0.05481467]
[1768081949948,0.31706273,135.87,135.83,0.05481467]
[1768081950154,6.94956273,135.87,135.83,0.05481467]
[1768081950352,0.31706273,135.86,135.83,0.05481467]
[1768081961963,0.31706273,135.86,135.8,6.6355]
[1768081962462,0.31862712,135.85,135.8,6.6355]
[1768081964068,0.31862712,135.87,135.8,6.6355]
[1768081965464,6.95122712,135.87,135.8,6.6355]
[1768081966764,6.95122712,135.87,135.76,103.2538]
[1768081966765,6.95122712,135.87,135.81,6.6355]
[1768081966965,0.31862712,135.87,135.78,103.2396]
[1768081969565,0.31862712,135.87,135.81,6.6351]
[1768081977279,6.6321,135.88,135.81,6.6351]
[1768081977577,0.31362227,135.87,135.81,6.6351]
[1768081981180,0.31362227,135.86,135.8,6.6359]
[1768081982584,0.31362227,135.86,135.78,6.6365]
[1768081983583,6.6337,135.85,135.78,6.6365]
[1768081985286,6.6337,135.85,135.79,6.6364]
[1768081986982,6.94822342,135.85,135.79,6.6364]
[1768081987190,6.94862342,135.84,135.75,190.282]
[1768081987888,6.94862342,135.84,135.75,103.262]
[1768081988187,6.94862342,135.84,135.74,88.583435]
[1768081989190,0.31452342,135.83,135.74,88.583435]
[1768081989590,0.31452342,135.83,135.77,6.6374]
[1768082018122,0.31452342,135.83,135.78,6.6369]
[1768082057059,6.6341,135.84,135.78,6.6369]
[1768082063763,6.96609927,135.84,135.78,6.6369]
[1768082064665,6.96699927,135.82,135.72,112.44797863]
[1768082064866,6.96699927,135.82,135.72,103.283]
[1768082065565,6.96699927,135.82,135.75,6.6382]
[1768082066158,6.6355,135.81,135.75,6.6382]
[1768082069072,6.96749927,135.81,135.75,6.6382]
[1768082083184,0.30416432,135.8,135.75,6.6382]
[1768082087484,0.30416432,135.8,135.71,10.44620389]
[1768082087680,0.30416432,135.8,135.74,6.6389]
[1768082101791,6.94026432,135.8,135.74,6.6389]
[1768082126421,0.30416432,135.8,135.74,6.6389]
[1768082131922,8.48353719,135.82,135.72,103.283]
[1768082132137,0.30363946,135.83,135.73,104.82189773]
[1768082133027,0.30363946,135.83,135.76,6.6379]
[1768082134530,6.93813946,135.83,135.73,104.82189773]
[1768082135328,6.93813946,135.83,135.76,6.6379]
[1768082139533,6.93813946,135.83,135.73,104.82189773]
[1768082139534,0.30363946,135.83,135.77,6.6374]
[1768082142438,0.30363946,135.83,135.78,6.6369]
[1768082147548,1.78363946,135.83,135.78,6.6369]
[1768082148049,1.78363946,135.83,135.77,6.6374]
[1768082148243,0.30363946,135.83,135.77,6.6374]
[1768082151449,0.30363946,135.83,135.78,6.6369]
[1768082151652,6.3060783,135.84,135.78,6.6369]
[1768082153551,6.6378038,135.84,135.78,6.6369]
[1768082160554,1.87662323,135.84,135.78,6.6369]
[1768082162461,0.3317255,135.84,135.78,6.6369]
[1768082168956,0.30715824,135.86,135.8,6.6358]
[1768082169161,5.47581471,135.85,135.8,6.6358]
[1768082169365,0.30715824,135.86,135.8,6.6358]
[1768082169561,5.47460778,135.85,135.8,6.6358]
[1768082169759,0.30715824,135.86,135.8,6.6358]
[1768082169960,5.47460771,135.85,135.8,6.6358]
[1768082170162,0.30715824,135.86,135.8,6.6358]
[1768082170362,5.47328465,135.85,135.8,6.6358]
[1768082170661,0.30715824,135.86,135.8,6.6358]
[1768082170864,5.47364251,135.85,135.8,6.6358]
[1768082171061,0.30715824,135.86,135.8,6.6358]
[1768082171268,5.47290159,135.85,135.8,6.6358]
[1768082171567,0.30715824,135.86,135.8,6.6358]
[1768082171767,5.47290159,135.85,135.8,6.6358]
[1768082171968,0.30715824,135.86,135.8,6.6358]
[1768082175269,5.77776551,135.85,135.8,6.6358]
[1768082175577,0.30715824,135.85,135.8,6.6358]
[1768082184275,6.93975824,135.87,135.8,6.6358]
[1768082184479,5.46747274,135.86,135.8,6.6358]
[1768082184781,6.93975824,135.87,135.8,6.6358]
[1768082185079,5.46747272,135.86,135.8,6.6358]
[1768082185277,6.93975824,135.87,135.8,6.6358]
[1768082185478,5.4673312,135.86,135.8,6.6358]
[1768082185670,6.93975824,135.87,135.8,6.6358]
[1768082185872,5.4673312,135.86,135.8,6.6358]
[1768082186179,6.6326,135.87,135.8,6.6358]
[1768082191984,6.93975824,135.87,135.8,6.6358]
[1768082209204,5.4239034,135.86,135.8,6.6358]
[1768082209392,6.93975824,135.87,135.8,6.6358]
[1768082209685,5.4239034,135.86,135.8,6.6358]
[1768082209885,6.93975824,135.87,135.8,6.6358]
[1768082210087,5.4239034,135.86,135.8,6.6358]
[1768082210291,6.93975824,135.87,135.8,6.6358]
[1768082210492,5.42487641,135.86,135.8,6.6358]
[1768082210701,6.93975824,135.87,135.8,6.6358]
[1768082211001,5.42487641,135.86,135.8,6.6358]
[1768082211200,6.93975824,135.87,135.8,6.6358]
[1768082211404,5.42602613,135.86,135.8,6.6358]
[1768082211599,6.93975824,135.87,135.8,6.6358]
[1768082211800,5.42602613,135.86,135.8,6.6358]
[1768082212001,6.93975824,135.87,135.8,6.6358]
[1768082212199,5.42602613,135.86,135.8,6.6358]
[1768082212398,6.93975824,135.87,135.8,6.6358]
[1768082212598,5.42742449,135.86,135.8,6.6358]
[1768082212904,6.93975824,135.87,135.8,6.6358]
[1768082213095,5.42742449,135.86,135.8,6.6358]
[1768082213292,6.93975824,135.87,135.8,6.6358]
[1768082213501,5.42923417,135.86,135.8,6.6358]
[1768082213711,6.93975824,135.87,135.8,6.6358]
[1768082213907,5.74291856,135.86,135.8,6.6358]
[1768082214102,0.31368439,135.86,135.8,6.6358]
[1768082215003,5.42936394,135.85,135.8,6.6358]
[1768082215203,0.31368439,135.86,135.8,6.6358]
[1768082215405,5.4294302,135.85,135.8,6.6358]
[1768082215606,0.31368439,135.86,135.8,6.6358]
[1768082216108,5.4294302,135.85,135.8,6.6358]
[1768082216414,0.31368439,135.86,135.8,6.6358]
[1768082216602,5.42949917,135.85,135.8,6.6358]
[1768082216802,0.31368439,135.86,135.8,6.6358]
[1768082217003,5.42949917,135.85,135.8,6.6358]
[1768082217303,0.31368439,135.86,135.8,6.6358]
[1768082217601,5.4295708,135.85,135.8,6.6358]
[1768082217901,0.31368439,135.86,135.8,6.6358]
[1768082218101,5.42964891,135.85,135.8,6.6358]
[1768082218304,0.31368439,135.86,135.8,6.6358]
[1768082219313,5.42964891,135.85,135.8,6.6358]
[1768082219513,0.31368439,135.86,135.8,6.6358]
[1768082221414,5.4297038,135.85,135.8,6.6358]
[1768082221615,0.31368439,135.86,135.8,6.6358]
[1768082221816,5.42769221,135.85,135.8,6.6358]
[1768082222008,0.31368439,135.86,135.8,6.6358]
[1768082222302,5.42766355,135.85,135.8,6.6358]
[1768082222506,0.31368439,135.86,135.8,6.6358]
[1768082222902,5.42716258,135.85,135.8,6.6358]
[1768082223102,0.31368439,135.86,135.8,6.6358]
[1768082224518,5.42771476,135.85,135.8,6.6358]
[1768082224715,0.31368439,135.86,135.8,6.6358]
[1768082224915,5.42771476,135.85,135.8,6.6358]
[1768082225115,0.31368439,135.86,135.8,6.6358]
[1768082225316,5.42806682,135.85,135.8,6.6358]
[1768082225516,0.31368439,135.86,135.8,6.6358]
[1768082225712,5.42809794,135.85,135.8,6.6358]
[1768082225911,0.31368439,135.86,135.8,6.6358]
[1768082226208,5.42810328,135.85,135.8,6.6358]
[1768082226411,0.31368439,135.86,135.8,6.6358]
[1768082226615,5.42853428,135.85,135.8,6.6358]
[1768082226815,0.31368439,135.86,135.8,6.6358]
[1768082227019,5.42850404,135.85,135.8,6.6358]
[1768082227217,0.31368439,135.86,135.8,6.6358]
[1768082227516,5.42903369,135.85,135.8,6.6358]
[1768082227715,0.31368439,135.86,135.81,6.6355]
[1768082227918,5.42903369,135.85,135.81,6.6355]
[1768082228218,0.31368439,135.86,135.81,6.6355]
[1768082228414,5.42944199,135.85,135.81,6.6355]
[1768082228615,0.31368439,135.86,135.81,6.6355]
[1768082228817,5.42947223,135.85,135.81,6.6355]
[1768082229016,0.31368439,135.86,135.81,6.6355]
[1768082229215,5.42983878,135.85,135.81,6.6355]
[1768082229415,0.31368439,135.86,135.81,6.6355]
[1768082229816,5.36936301,135.85,135.81,6.6355]
[1768082230118,0.31368439,135.86,135.81,6.6355]
[1768082230320,5.36965992,135.85,135.81,6.6355]
[1768082230518,0.31368439,135.86,135.81,6.6355]
[1768082230717,5.36961386,135.85,135.81,6.6355]
[1768082230919,0.31368439,135.86,135.81,6.6355]
[1768082231114,5.3697887,135.85,135.81,6.6355]
[1768082231317,0.31368439,135.86,135.81,6.6355]
[1768082231520,5.37009598,135.85,135.81,6.6355]
[1768082231813,0.31368439,135.86,135.81,6.6355]
[1768082232018,5.37079105,135.85,135.81,6.6355]
[1768082232321,0.31368439,135.86,135.81,6.6355]
[1768082232618,5.37054945,135.85,135.81,6.6355]
[1768082232816,0.31368439,135.86,135.81,6.6355]
[1768082233019,5.37054945,135.85,135.81,6.6355]
[1768082233220,0.31368439,135.86,135.81,6.6355]
[1768082233420,5.3704917,135.85,135.81,6.6355]
[1768082233720,0.31368439,135.86,135.81,6.6355]
[1768082233919,5.37031686,135.85,135.81,6.6355]
[1768082234119,0.31368439,135.86,135.81,6.6355]
[1768082234318,5.370292,135.85,135.81,6.6355]
[1768082234519,0.31368439,135.86,135.81,6.6355]
[1768082234720,5.37044033,135.85,135.81,6.6355]
[1768082234915,0.31368439,135.86,135.81,6.6355]
[1768082235115,5.37026549,135.85,135.81,6.6355]
[1768082235311,0.31368439,135.86,135.81,6.6355]
[1768082235522,5.37028033,135.85,135.81,6.6355]
[1768082235723,0.31368439,135.86,135.81,6.6355]
[1768082235922,5.37028033,135.85,135.81,6.6355]
[1768082236111,0.31368439,135.86,135.81,6.6355]
[1768082236316,5.37025893,135.85,135.81,6.6355]
[1768082236517,0.31368439,135.86,135.81,6.6355]
[1768082236724,5.37024242,135.85,135.81,6.6355]
[1768082236925,0.31368439,135.86,135.81,6.6355]
[1768082237116,5.37024243,135.85,135.81,6.6355]
[1768082237417,0.31368439,135.86,135.81,6.6355]
[1768082237617,5.37020951,135.85,135.81,6.6355]
[1768082237817,0.31368439,135.86,135.81,6.6355]
[1768082238110,5.37020951,135.85,135.81,6.6355]
[1768082238315,0.31368439,135.86,135.81,6.6355]
[1768082238518,0.31307494,135.84,135.79,6.6361]
[1768082238818,5.36935466,135.83,135.75,103.2614]
[1768082239023,0.31307494,135.84,135.75,103.2614]
[1768082239217,5.3696057,135.83,135.75,103.2614]
[1768082239417,0.31307494,135.84,135.75,103.2614]
[1768082239622,5.36721052,135.83,135.78,6.6369]
[1768082239823,0.31307494,135.84,135.78,6.6369]
[1768082240025,5.36719267,135.83,135.78,6.6369]
[1768082240211,0.31307494,135.84,135.78,6.6369]
[1768082261034,5.66353131,135.83,135.77,6.6374]
[1768082261234,0.30707185,135.83,135.77,6.6374]
[1768082267555,6.94167185,135.83,135.77,6.6374]
[1768082267850,5.3548498,135.82,135.77,6.6374]
[1768082268052,6.94167185,135.83,135.77,6.6374]
[1768082268253,5.35467536,135.82,135.77,6.6374]
[1768082268549,6.94167185,135.83,135.77,6.6374]
[1768082270060,0.30707185,135.82,135.75,6.6379]
[1768082270658,0.30707185,135.82,135.76,6.6379]
[1768082274760,0.31748341,135.81,135.76,6.6379]
[1768082274973,0.31748341,135.81,135.75,6.6384]
[1768082275267,6.95248341,135.82,135.75,6.6384]
[1768082275565,6.95248341,135.82,135.76,6.6379]
[1768082284264,5.35783515,135.81,135.76,6.6379]
[1768082284566,6.95248341,135.82,135.76,6.6379]
[1768082284757,5.35739912,135.81,135.76,6.6379]
[1768082284960,6.95248341,135.82,135.76,6.6379]
[1768082285161,5.35736389,135.81,135.76,6.6379]
[1768082285368,6.95248341,135.82,135.76,6.6379]
[1768082285567,5.3570945,135.81,135.76,6.6379]
[1768082285758,6.95248341,135.82,135.76,6.6379]
[1768082285959,5.3570945,135.81,135.76,6.6379]
[1768082286169,6.95248341,135.82,135.76,6.6379]
[1768082286362,5.3570945,135.81,135.76,6.6379]
[1768082286563,6.95248341,135.82,135.76,6.6379]
[1768082286763,5.35687727,135.81,135.76,6.6379]
[1768082287066,6.95248341,135.82,135.76,6.6379]
[1768082287263,5.35687727,135.81,135.76,6.6379]
[1768082287462,6.95248341,135.82,135.76,6.6379]
[1768082287665,5.35670974,135.81,135.76,6.6379]
[1768082287865,6.95248341,135.82,135.76,6.6379]
[1768082288067,5.35670974,135.81,135.76,6.6379]
[1768082288264,6.95248341,135.82,135.76,6.6379]
[1768082288465,5.35659009,135.81,135.76,6.6379]
[1768082288666,6.95248341,135.82,135.76,6.6379]
[1768082288867,5.35659009,135.81,135.76,6.6379]
[1768082289071,6.95248341,135.82,135.76,6.6379]
[1768082289272,5.35659009,135.81,135.76,6.6379]
[1768082289462,6.95248341,135.82,135.76,6.6379]
[1768082289661,5.33478117,135.81,135.76,6.6379]
[1768082289869,6.95248341,135.82,135.76,6.6379]
[1768082290076,5.33460735,135.81,135.76,6.6379]
[1768082290279,6.95248341,135.82,135.76,6.6379]
[1768082290574,5.33475421,135.81,135.76,6.6379]
[1768082290769,6.95248341,135.82,135.76,6.6379]
[1768082290968,5.33475421,135.81,135.76,6.6379]
[1768082291176,6.95248341,135.82,135.76,6.6379]
[1768082291377,5.33475421,135.81,135.76,6.6379]
[1768082291673,6.95248341,135.82,135.76,6.6379]
[1768082291878,5.33477273,135.81,135.76,6.6379]
[1768082292078,6.95248341,135.82,135.76,6.6379]
[1768082292280,5.33477273,135.81,135.76,6.6379]
[1768082292472,6.95248341,135.82,135.76,6.6379]
[1768082292674,5.3348369,135.81,135.76,6.6379]
[1768082292876,6.95248341,135.82,135.76,6.6379]
[1768082293076,5.3348369,135.81,135.76,6.6379]
[1768082293373,6.95248341,135.82,135.76,6.6379]
[1768082293571,5.3344635,135.81,135.76,6.6379]
[1768082293773,6.95248341,135.82,135.76,6.6379]
[1768082293973,5.3344635,135.81,135.76,6.6379]
[1768082294174,6.95248341,135.82,135.76,6.6379]
[1768082294480,5.3344635,135.81,135.76,6.6379]
[1768082294778,6.95248341,135.82,135.76,6.6379]
[1768082294976,5.33479522,135.81,135.76,6.6379]
[1768082295176,6.95248341,135.82,135.76,6.6379]
[1768082295376,5.33479522,135.81,135.76,6.6379]
[1768082295582,6.95248341,135.82,135.76,6.6379]
[1768082295780,5.33500223,135.81,135.76,6.6379]
[1768082296077,6.95248341,135.82,135.76,6.6379]
[1768082296378,5.33500223,135.81,135.76,6.6379]
[1768082296577,6.95248341,135.82,135.76,6.6379]
[1768082296778,5.33526069,135.81,135.76,6.6379]
[1768082296978,6.95248341,135.82,135.76,6.6379]
[1768082297177,5.3352607,135.81,135.76,6.6379]
[1768082297380,6.95248341,135.82,135.76,6.6379]
[1768082297581,5.33557373,135.81,135.76,6.6379]
[1768082297780,6.95248341,135.82,135.76,6.6379]
[1768082298082,5.33557373,135.81,135.76,6.6379]
[1768082298381,6.95248341,135.82,135.76,6.6379]
[1768082298680,5.33577161,135.81,135.76,6.6379]
[1768082298880,6.95248341,135.82,135.76,6.6379]
[1768082299081,5.33594548,135.81,135.76,6.6379]
[1768082299282,6.95248341,135.82,135.76,6.6379]
[1768082299480,5.33638141,135.81,135.76,6.6379]
[1768082299670,6.95248341,135.82,135.76,6.6379]
[1768082299874,5.33638141,135.81,135.76,6.6379]
[1768082300083,6.95248341,135.82,135.76,6.6379]
[1768082300384,5.33638141,135.81,135.76,6.6379]
[1768082300576,6.95248341,135.82,135.76,6.6379]
[1768082300778,5.33688776,135.81,135.76,6.6379]
[1768082300973,6.95248341,135.82,135.76,6.6379]
[1768082301177,5.33688776,135.81,135.76,6.6379]
[1768082301477,6.95248341,135.82,135.76,6.6379]
[1768082301677,5.33730416,135.81,135.76,6.6379]
[1768082301883,6.95248341,135.82,135.76,6.6379]
[1768082302085,5.33730416,135.81,135.76,6.6379]
[1768082302281,6.95248341,135.82,135.76,6.6379]
[1768082302582,5.33798726,135.81,135.76,6.6379]
[1768082302782,6.95248341,135.82,135.76,6.6379]
[1768082302982,5.33816121,135.81,135.76,6.6379]
[1768082303283,6.95248341,135.82,135.76,6.6379]
[1768082303483,5.33896058,135.81,135.76,6.6379]
[1768082303683,6.95248341,135.82,135.76,6.6379]
[1768082303885,5.33896058,135.81,135.76,6.6379]
[1768082304087,6.95248341,135.82,135.75,6.6384]
[1768082304287,5.33896058,135.81,135.75,6.6384]
[1768082304486,6.95248341,135.82,135.75,6.6384]
[1768082304686,5.33955817,135.81,135.75,6.6384]
[1768082304880,6.95248341,135.82,135.75,6.6384]
[1768082305082,5.33955817,135.81,135.75,6.6384]
[1768082305284,6.95248341,135.82,135.75,6.6384]
[1768082305484,5.34064563,135.81,135.75,6.6384]
[1768082305683,6.95248341,135.82,135.75,6.6384]
[1768082305888,5.34061481,135.81,135.75,6.6384]
[1768082306085,6.95248341,135.82,135.75,6.6384]
[1768082306283,5.34061483,135.81,135.75,6.6384]
[1768082306482,6.95248341,135.82,135.75,6.6384]